bitfinex/quotes_SOLUSD_20230701
["timestamp","ask_amount","ask_price","bid_price","bid_amount"]
[1688245872228,20.0,18.431,18.421,77.962]
[1688245872420,14.15136084,18.43,18.421,77.962]
[1688245872631,14.15136084,18.43,18.421,170.4326]
[1688245872937,22.951,18.43,18.421,170.4326]
[1688245873235,22.951,18.43,18.421,115.4326]
[1688245873429,15.54449077,18.429,18.421,92.4706]
[1688245873625,22.955,18.427,18.421,92.4706]
[1688245873826,22.955,18.427,18.42,22.963]
[1688245876641,22.954,18.429,18.42,22.963]
[1688245876835,22.954,18.429,18.417,85.64552657]
[1688245876836,22.954,18.429,18.422,22.96]
[1688245887549,17.43018666,18.429,18.422,22.96]
[1688245903961,11.49685703,18.434,18.422,82.074]
[1688245904149,86.25310313,18.439,18.423,55.0]
[1688245904150,25.59218714,18.436,18.423,55.0]
[1688245904466,22.947,18.434,18.426,22.955]
[1688245904658,22.947,18.434,18.427,77.954]
[1688245904966,22.947,18.434,18.427,22.954]
[1688245906469,22.945,18.435,18.427,22.954]
[1688245906871,28.00004888,18.434,18.427,22.954]
[1688245909679,22.945,18.435,18.427,22.954]
[1688245909865,28.00004888,18.435,18.427,22.954]
[1688245912257,50.94604888,18.435,18.427,22.954]
[1688245912459,22.946,18.435,18.427,22.954]
[1688245914769,28.00004888,18.439,18.427,22.954]
[1688245915071,28.00004888,18.435,18.427,22.954]
[1688245919771,28.00004888,18.436,18.427,22.954]
[1688245920369,50.94404888,18.436,18.427,22.954]
[1688245925568,28.00004888,18.436,18.427,22.954]
[1688245925777,28.00004888,18.436,18.428,55.0]
[1688245925982,28.00004888,18.436,18.43,22.951]
[1688245926783,22.943,18.437,18.43,22.951]
[1688245940875,28.00004888,18.439,18.428,55.0]
[1688245941077,22.943,18.437,18.43,22.951]
[1688245954202,11.75300833,18.436,18.43,22.951]
[1688245954401,34.69700833,18.436,18.43,22.951]
[1688245954585,22.944,18.436,18.43,22.951]
[1688245967413,12.57895946,18.439,18.43,22.951]
[1688245967622,12.57895946,18.439,18.431,55.0]
[1688245967798,22.939,18.441,18.433,22.947]
[1688245967995,22.21503841,18.443,18.433,22.947]
[1688245968415,20.0,18.442,18.433,22.947]
[1688245968796,22.939,18.44,18.433,22.947]
[1688245971309,22.939,18.44,18.432,22.948]
[1688245978418,22.939,18.44,18.433,55.0]
[1688245978615,22.939,18.44,18.434,22.945]
[1688245978820,22.939,18.44,18.435,55.0]
[1688245979723,20.0,18.442,18.435,22.944]
[1688245980019,42.937,18.442,18.434,55.0]
[1688245980722,42.937,18.442,18.434,77.946]
[1688245980926,10.75129942,18.441,18.434,77.946]
[1688245981223,22.939,18.44,18.434,77.946]
[1688245982119,22.939,18.44,18.434,55.0]
[1688245984425,22.939,18.44,18.434,77.946]
[1688245985023,22.939,18.44,18.434,55.0]
[1688245988428,22.939,18.44,18.434,77.946]
[1688245988721,22.939,18.44,18.434,55.0]
[1688245989422,22.939,18.44,18.43,51.49732199]
[1688245989630,12.64554653,18.439,18.43,24.49]
[1688245989830,22.943,18.437,18.43,24.49]
[1688245990129,22.943,18.437,18.429,50.17451244]
[1688245990426,22.943,18.437,18.429,22.952]
[1688245991509,22.943,18.437,18.43,55.0]
[1688245991717,22.943,18.437,18.43,77.951]
[1688245995715,22.941,18.439,18.43,102.561]
[1688245996738,20.0,18.442,18.43,102.561]
[1688245996924,59.89469922,18.441,18.43,102.561]
[1688245997125,39.89469922,18.441,18.43,102.561]
[1688246005934,39.89469922,18.441,18.43,47.561]
[1688246006622,39.39469922,18.441,18.43,47.561]
[1688246007640,39.39469922,18.441,18.431,55.0]
[1688246007932,39.39469922,18.441,18.431,77.95]
[1688246020039,39.39469922,18.441,18.431,104.4326899]
[1688246021536,39.39469922,18.441,18.431,49.4326899]
[1688246022747,39.39469922,18.441,18.431,22.95]
[1688246022946,39.39469922,18.441,18.432,55.0]
[1688246024250,39.39469922,18.441,18.431,22.95]
[1688246027449,38.39469922,18.441,18.431,22.95]
[1688246030556,36.89469922,18.441,18.431,22.95]
[1688246033747,34.89469922,18.441,18.431,22.95]
[1688246035342,34.89469922,18.441,18.431,50.06590505]
[1688246035542,34.89469922,18.441,18.431,22.95]
[1688246036164,34.89469922,18.441,18.432,55.0]
[1688246036459,34.89469922,18.441,18.432,77.948]
[1688246037440,34.39469922,18.441,18.432,77.948]
[1688246040464,20.0,18.443,18.432,77.948]
[1688246040760,22.50004888,18.446,18.432,77.948]
[1688246040956,22.937,18.442,18.432,77.948]
[1688246041163,20.0,18.441,18.432,77.948]
[1688246041358,22.94,18.439,18.432,77.948]
[1688246049767,22.94,18.439,18.432,55.0]
[1688246049975,6.64521377,18.438,18.432,55.0]
[1688246050266,22.943,18.437,18.432,55.0]
[1688246050475,22.943,18.437,18.433,55.0]
[1688246050770,22.943,18.437,18.431,55.0]
[1688246051572,22.943,18.437,18.431,77.95]
[1688246052963,20.0,18.441,18.431,77.95]
[1688246053282,12.23768308,18.44,18.431,77.95]
[1688246053778,22.942,18.438,18.431,77.95]
[1688246054578,22.94,18.439,18.431,77.95]
[1688246054871,5.75161698,18.438,18.431,77.95]
[1688246055174,28.69261698,18.438,18.431,77.95]
[1688246055379,22.941,18.438,18.431,77.95]
[1688246057773,20.0,18.441,18.431,77.95]
[1688246057969,13.06475656,18.44,18.431,77.95]
[1688246058169,17.62291045,18.441,18.431,77.95]
[1688246058874,22.939,18.44,18.431,77.95]
[1688246061277,17.62291045,18.439,18.431,77.95]
[1688246061470,40.56291045,18.439,18.431,77.95]
[1688246061779,22.94,18.439,18.431,77.95]
[1688246067887,20.0,18.438,18.425,22.943]
[1688246068187,189.81,18.435,18.42,22.963]
[1688246068398,22.951,18.43,18.42,22.963]
[1688246069079,22.955,18.428,18.42,22.963]
[1688246071784,22.952,18.43,18.42,22.963]
[1688246072089,22.95,18.431,18.423,22.959]
[1688246072290,22.95,18.431,18.425,22.957]
[1688246074171,22.95,18.431,18.421,55.0]
[1688246074376,22.95,18.431,18.424,22.958]
[1688246076603,22.50004888,18.433,18.424,22.958]
[1688246076894,22.50004888,18.436,18.425,55.0]
[1688246077097,22.944,18.436,18.428,22.953]
[1688246081283,22.942,18.438,18.428,22.953]
[1688246081483,22.50004888,18.437,18.428,22.953]
[1688246081680,45.44304888,18.437,18.428,22.953]
[1688246084701,22.50004888,18.437,18.428,22.953]
[1688246084900,22.50004888,18.439,18.428,22.953]
[1688246085689,22.943,18.437,18.422,27.66650238]
[1688246085888,77.50004888,18.436,18.42,83.728]
[1688246086082,22.947,18.434,18.425,22.957]
[1688246086292,22.50004888,18.433,18.425,22.957]
[1688246086491,45.44804888,18.433,18.425,22.957]
[1688246086804,45.44804888,18.433,18.424,22.958]
[1688246087004,20.0,18.432,18.424,22.958]
[1688246087210,45.45104888,18.431,18.424,22.958]
[1688246087988,22.951,18.431,18.424,22.958]
[1688246100814,22.951,18.431,18.42,47.454]
[1688246100991,22.50004888,18.43,18.423,22.96]
[1688246101199,22.50004888,18.43,18.424,55.0]
[1688246101509,22.947,18.434,18.425,22.956]
[1688246101698,22.947,18.434,18.424,55.0]
[1688246101699,22.947,18.434,18.428,22.953]
[1688246101905,22.945,18.436,18.428,22.953]
[1688246102103,22.50004888,18.435,18.428,22.953]
[1688246106315,22.50004888,18.436,18.428,22.953]
[1688246106913,22.50004888,18.439,18.428,22.953]
[1688246107107,59.043,18.445,18.432,22.949]
[1688246107108,22.939,18.441,18.432,22.949]
[1688246107519,22.50004888,18.44,18.432,22.949]
[1688246108207,45.44004888,18.44,18.432,22.949]
[1688246108408,22.94,18.44,18.432,22.949]
[1688246111116,47.55,18.44,18.432,22.949]
[1688246111414,45.44104888,18.439,18.432,22.949]
[1688246111808,22.50004888,18.439,18.432,22.949]
[1688246112120,22.939,18.44,18.432,22.949]
[1688246126328,22.939,18.44,18.429,26.70527913]
[1688246126635,22.50004888,18.439,18.43,24.49]
[1688246126815,45.44104888,18.439,18.431,22.95]
[1688246131634,22.941,18.439,18.431,22.95]
[1688246140737,22.50004888,18.443,18.432,10.83719922]
[1688246141030,22.50004888,18.438,18.435,22.945]
[1688246141443,22.934,18.444,18.435,22.945]
[1688246141841,22.933,18.445,18.435,22.945]
[1688246142230,22.931,18.447,18.435,22.945]
[1688246142425,22.931,18.447,18.439,22.94]
[1688246143223,22.50004888,18.447,18.439,22.94]
[1688246143422,22.50004888,18.448,18.439,22.94]
[1688246144640,22.50004888,18.455,18.442,22.936]
[1688246144843,22.925,18.452,18.442,22.936]
[1688246145036,20.0,18.451,18.442,22.936]
[1688246145222,22.50004888,18.45,18.442,22.936]
[1688246147649,22.927,18.45,18.441,22.937]
[1688246168458,22.50004888,18.453,18.441,22.937]
[1688246168634,75.0,18.452,18.441,22.937]
[1688246168836,22.50004888,18.451,18.441,22.937]
[1688246169658,45.42604888,18.451,18.441,22.937]
[1688246182455,55.0,18.45,18.439,22.939]
[1688246182651,22.93,18.447,18.438,97.065]
[1688246183150,22.50004888,18.446,18.438,97.065]
[1688246183357,22.50004888,18.446,18.44,22.939]
[1688246183555,22.93,18.447,18.44,22.939]
[1688246184568,22.929,18.448,18.44,22.939]
[1688246184868,7.64722048,18.447,18.44,22.939]
[1688246202861,8.21324484,18.448,18.44,22.939]
[1688246211875,8.21324484,18.448,18.44,47.429]
[1688246212078,31.14224484,18.448,18.44,47.429]
[1688246212280,22.929,18.448,18.44,47.429]
[1688246218892,22.929,18.448,18.44,22.939]
[1688246219192,31.14424484,18.447,18.44,22.939]
[1688246219396,22.931,18.447,18.44,22.939]
[1688246221086,22.931,18.447,18.437,22.941]
[1688246221394,85.59887136,18.446,18.43,92.7335]
[1688246221572,22.937,18.442,18.433,22.947]
[1688246221887,59.043,18.444,18.433,22.947]
[1688246221888,22.941,18.439,18.433,22.947]
[1688246230788,22.941,18.439,18.431,22.949]
[1688246231982,28.46491777,18.438,18.431,22.949]
[1688246232404,22.942,18.438,18.431,22.949]
[1688246234277,5.52291777,18.437,18.43,115.6845]
[1688246234675,28.46691777,18.437,18.43,115.6845]
[1688246234892,22.944,18.437,18.43,115.6845]
[1688246238584,22.942,18.438,18.43,115.6845]
[1688246238782,4.60941868,18.437,18.43,115.6845]
[1688246241186,10.64527004,18.439,18.43,115.6845]
[1688246241485,33.58527004,18.439,18.43,115.6845]
[1688246262095,22.94,18.439,18.43,115.6845]
[1688246287612,10.64527004,18.442,18.43,140.2945]
[1688246288119,42.938,18.441,18.434,22.946]
[1688246290827,42.938,18.441,18.424,22.958]
[1688246291027,86.52623654,18.44,18.424,22.958]
[1688246291326,82.016,18.436,18.423,94.1911]
[1688246291506,82.016,18.436,18.422,22.96]
[1688246291507,77.50004888,18.435,18.422,22.96]
[1688246291712,22.95,18.432,18.422,22.96]
[1688246292018,42.50004888,18.431,18.422,22.96]
[1688246292224,22.953,18.429,18.422,22.96]
[1688246302943,22.953,18.429,18.42,47.573]
[1688246304239,22.951,18.43,18.42,47.573]
[1688246304535,22.951,18.43,18.421,55.0]
[1688246304735,22.951,18.43,18.423,22.96]
[1688246304943,22.951,18.43,18.424,55.0]
[1688246309042,20.0,18.431,18.424,77.958]
[1688246309347,28.27318047,18.434,18.424,77.958]
[1688246309935,22.95,18.431,18.424,77.958]
[1688246319649,22.95,18.431,18.424,22.958]
[1688246320155,22.95,18.431,18.422,22.96]
[1688246322352,22.95,18.431,18.425,22.957]
[1688246323264,22.95,18.431,18.424,22.958]
[1688246331351,22.95,18.431,18.421,27.06273268]
[1688246331555,22.95,18.431,18.422,22.961]
[1688246341160,22.95,18.431,18.42,24.61]
[1688246341363,22.95,18.431,18.416,22.967]
[1688246341364,79.61,18.43,18.416,22.967]
[1688246341568,22.956,18.426,18.416,22.967]
[1688246343369,22.956,18.426,18.412,124.57785795]
[1688246343554,16.68115403,18.425,18.415,22.969]
[1688246343877,22.959,18.424,18.415,22.969]
[1688246344251,22.957,18.426,18.415,22.969]
[1688246348868,75.0,18.425,18.415,22.969]
[1688246349070,22.961,18.422,18.415,22.969]
[1688246349263,20.0,18.421,18.41,59.149]
[1688246349466,22.965,18.42,18.408,99.6905]
[1688246349776,22.965,18.42,18.408,127.42558226]
[1688246350275,22.965,18.42,18.411,22.974]
[1688246352062,106.695,18.42,18.408,27.73508226]
[1688246352477,55.0,18.419,18.403,149.3489]
[1688246352668,22.969,18.416,18.41,22.976]
[1688246352961,22.968,18.417,18.41,22.976]
[1688246353163,22.969,18.416,18.41,22.976]
[1688246354082,22.968,18.417,18.41,22.976]
[1688246359762,22.968,18.417,18.403,198.1429]
[1688246359980,22.968,18.417,18.409,22.976]
[1688246362574,22.968,18.417,18.409,21.49436506]
[1688246365374,22.968,18.417,18.404,55.0]
[1688246365584,22.968,18.417,18.405,25.21474033]
[1688246365884,22.968,18.417,18.408,22.978]
[1688246382100,22.968,18.417,18.408,49.78335172]
[1688246382401,22.968,18.417,18.408,22.978]
[1688246386803,24.61,18.42,18.408,22.978]
[1688246386987,22.964,18.42,18.413,22.971]
[1688246391507,22.964,18.42,18.412,22.973]
[1688246393703,22.964,18.42,18.409,55.0]
[1688246393704,22.964,18.42,18.411,22.975]
[1688246404110,22.963,18.421,18.411,22.975]
[1688246404303,22.963,18.421,18.414,22.97]
[1688246411220,22.963,18.421,18.413,22.972]
[1688246411431,22.963,18.421,18.414,55.0]
[1688246422224,22.963,18.421,18.413,27.51149747]
[1688246422430,22.963,18.421,18.411,122.7295]
[1688246422621,22.963,18.421,18.412,55.0]
[1688246424517,22.963,18.421,18.412,77.973]
[1688246456745,22.963,18.421,18.412,22.973]
[1688246466542,22.963,18.421,18.413,55.0]
[1688246466748,22.963,18.421,18.414,22.97]
[1688246469356,22.963,18.421,18.411,99.7555]
[1688246470853,22.963,18.421,18.411,122.7295]
[1688246474759,24.61,18.42,18.404,107.962]
[1688246474948,22.97,18.416,18.409,22.977]
[1688246484061,22.967,18.417,18.409,22.977]
[1688246494569,24.61,18.42,18.409,22.977]
[1688246494780,22.966,18.418,18.409,22.977]
[1688246502280,82.092,18.418,18.407,22.979]
[1688246502479,55.0,18.417,18.407,22.979]
[1688246502676,55.0,18.417,18.401,97.76]
[1688246502677,22.971,18.414,18.401,97.76]
[1688246502876,22.971,18.414,18.402,52.31868985]
[1688246503084,22.971,18.414,18.402,24.53092506]
[1688246503770,22.971,18.414,18.404,22.983]
[1688246506186,22.969,18.416,18.404,22.983]
[1688246506369,22.969,18.416,18.405,1.67479493]
[1688246506573,22.969,18.416,18.408,22.978]
[1688246543509,22.969,18.416,18.4,62.42947698]
[1688246543510,31.99556947,18.416,18.401,92.8358]
[1688246543702,31.99556947,18.416,18.401,104.99353816]
[1688246543703,9.02656947,18.415,18.401,104.99353816]
[1688246543904,22.975,18.411,18.404,22.983]
[1688246544422,22.975,18.411,18.401,92.8358]
[1688246544598,22.975,18.411,18.401,115.8228]
[1688246550313,22.975,18.411,18.401,92.8358]
[1688246550611,55.0,18.41,18.401,92.8358]
[1688246550816,22.98,18.408,18.401,92.8358]
[1688246551905,22.98,18.408,18.401,115.8228]
[1688246552913,22.98,18.408,18.396,59.195]
[1688246553216,22.98,18.408,18.397,93.6009]
[1688246554822,22.98,18.408,18.399,22.99]
[1688246563432,59.15,18.411,18.397,93.6009]
[1688246563433,22.978,18.409,18.402,22.985]
[1688246566324,22.978,18.409,18.401,22.987]
[1688246566834,22.978,18.409,18.4,57.798]
[1688246568019,22.978,18.409,18.4,22.988]
[1688246569230,82.133,18.409,18.397,22.991]
[1688246569436,55.0,18.408,18.397,22.991]
[1688246569641,22.983,18.405,18.397,22.991]
[1688246594039,22.98,18.407,18.397,22.991]
[1688246594439,22.98,18.407,18.398,1.86726884]
[1688246594638,22.98,18.407,18.4,22.988]
[1688246599266,22.98,18.407,18.395,59.199]
[1688246599451,22.98,18.407,18.396,9.25028618]
[1688246599452,82.142,18.407,18.396,9.25028618]
[1688246599650,55.0,18.406,18.391,105.94240992]
[1688246599851,82.166,18.402,18.391,105.94240992]
[1688246600177,22.991,18.398,18.391,94.219]
[1688246600539,22.991,18.398,18.391,117.218]
[1688246603561,22.991,18.398,18.391,117.219]
[1688246603950,59.174,18.404,18.392,2.29584415]
[1688246604145,22.991,18.399,18.392,25.29384415]
[1688246604349,22.991,18.399,18.392,22.998]
[1688246606765,22.991,18.399,18.391,117.218]
[1688246607957,22.991,18.399,18.391,94.219]
[1688246617370,22.991,18.399,18.386,23.005]
[1688246617671,22.996,18.395,18.386,23.005]
[1688246622272,22.994,18.396,18.386,23.005]
[1688246630579,22.989,18.4,18.391,22.999]
[1688246632084,22.985,18.404,18.391,22.999]
[1688246632270,22.989,18.404,18.392,85.83719922]
[1688246632479,22.979,18.408,18.395,82.192]
[1688246632672,22.979,18.408,18.396,62.21296653]
[1688246632873,22.979,18.408,18.399,22.989]
[1688246634477,22.977,18.41,18.4,55.0]
[1688246634683,22.977,18.41,18.403,22.985]
[1688246634883,44.12000215,18.42,18.403,22.985]
[1688246634884,59.132,18.417,18.403,22.985]
[1688246635282,20.0,18.416,18.403,22.985]
[1688246635485,28.94000215,18.416,18.403,22.985]
[1688246635878,22.973,18.413,18.403,22.985]
[1688246636081,20.0,18.412,18.403,22.985]
[1688246636279,22.975,18.411,18.403,22.985]
[1688246637186,20.0,18.412,18.403,22.985]
[1688246637382,20.0,18.416,18.403,22.985]
[1688246638694,22.975,18.411,18.403,22.985]
[1688246640295,22.975,18.411,18.402,22.986]
[1688246640494,22.975,18.411,18.401,22.987]
[1688246658019,90.07,18.41,18.399,22.989]
[1688246658318,22.98,18.407,18.399,22.989]
[1688246678434,22.98,18.407,18.395,59.199]
[1688246678631,55.0,18.406,18.396,8.89144822]
[1688246678942,22.985,18.403,18.397,22.992]
[1688246692643,22.984,18.404,18.397,22.992]
[1688246693028,58.059,18.41,18.397,22.992]
[1688246693231,8.9425996,18.412,18.398,3.89368573]
[1688246693425,22.977,18.409,18.402,22.986]
[1688246695952,22.977,18.409,18.4,22.987]
[1688246697748,22.977,18.409,18.4,22.988]
[1688246700953,22.977,18.409,18.396,0.75267661]
[1688246701133,35.18,18.41,18.394,95.4262]
[1688246701134,22.983,18.405,18.395,6.98144311]
[1688246702846,22.983,18.405,18.398,22.991]
[1688246703350,22.979,18.408,18.398,22.991]
[1688246703558,22.979,18.408,18.399,2.82244086]
[1688246703736,22.979,18.408,18.4,22.988]
[1688246706655,22.979,18.408,18.398,22.991]
[1688246706858,55.0,18.407,18.398,22.991]
[1688246707037,22.983,18.405,18.398,22.991]
[1688246711949,22.982,18.406,18.398,22.991]
[1688246714053,22.982,18.406,18.394,94.0516]
[1688246714258,22.982,18.406,18.397,22.992]
[1688246720458,22.982,18.406,18.394,94.0516]
[1688246720642,22.982,18.406,18.396,6.52936407]
[1688246721960,22.982,18.406,18.397,22.992]
[1688246722338,20.0,18.405,18.392,59.209]
[1688246722553,22.988,18.401,18.393,22.997]
[1688246723453,22.988,18.401,18.392,22.998]
[1688246723658,22.988,18.401,18.393,1.22200429]
[1688246728173,22.988,18.401,18.392,4.45678619]
[1688246728350,22.988,18.401,18.392,59.45678619]
[1688246728665,82.169,18.401,18.392,4.45678619]
[1688246729044,82.184,18.398,18.387,6.6346963]
[1688246729451,82.184,18.398,18.386,29.72391344]
[1688246733075,82.184,18.398,18.389,23.002]
[1688246733076,22.992,18.398,18.389,23.002]
[1688246734359,22.992,18.398,18.388,23.003]
[1688246734558,22.992,18.398,18.389,1.76855443]
[1688246734958,22.992,18.398,18.388,23.003]
[1688246750767,22.992,18.398,18.389,0.77344822]
[1688246751060,22.992,18.398,18.391,22.999]
[1688246751867,22.992,18.398,18.386,1.59313019]
[1688246752066,22.992,18.398,18.386,56.59313019]
[1688246752874,22.992,18.398,18.389,23.002]
[1688246754487,22.992,18.398,18.389,22.502]
[1688246758289,106.69013303,18.405,18.389,22.502]
[1688246758583,22.988,18.401,18.392,22.998]
[1688246763795,22.988,18.401,18.391,23.0]
[1688246765496,22.988,18.401,18.392,55.0]
[1688246765701,22.988,18.401,18.393,22.997]
[1688246765996,35.07,18.41,18.394,55.0]
[1688246766208,59.151,18.411,18.397,22.992]
[1688246766382,22.979,18.408,18.398,55.0]
[1688246766583,22.979,18.408,18.401,22.987]
[1688246767985,22.978,18.409,18.402,55.0]
[1688246768293,22.978,18.409,18.403,22.984]
[1688246776087,22.974,18.412,18.403,22.984]
[1688246776297,20.0,18.411,18.403,22.984]
[1688246776525,22.977,18.41,18.403,22.984]
[1688246780708,22.977,18.41,18.402,22.986]
[1688246782009,22.977,18.41,18.401,22.987]
[1688246784508,22.977,18.41,18.401,22.487]
[1688246802406,22.977,18.41,18.402,0.84640877]
[1688246802606,22.977,18.41,18.4,58.168]
[1688246802607,22.977,18.41,18.401,27.57194779]
[1688246813323,22.977,18.41,18.401,4.58494779]
[1688246813827,22.977,18.41,18.401,27.57194779]
[1688246815129,22.977,18.41,18.401,4.58494779]
[1688246815427,22.977,18.41,18.396,70.03219922]
[1688246815428,22.98,18.407,18.398,22.991]
[1688246816724,22.98,18.407,18.4,22.988]
[1688246820914,22.978,18.409,18.4,58.168]
[1688246821120,22.978,18.409,18.401,4.27032723]
[1688246821334,22.978,18.409,18.403,22.984]
[1688246824536,22.978,18.409,18.401,22.986]
[1688246825938,22.978,18.409,18.402,4.65016805]
[1688246826120,22.978,18.409,18.402,27.63616805]
[1688246826436,22.978,18.409,18.402,22.986]
[1688246831745,22.978,18.409,18.4,35.07]
[1688246831939,22.978,18.409,18.401,3.31989965]
[1688246832237,22.978,18.409,18.401,26.30689965]
[1688246843042,20.0,18.411,18.402,55.0]
[1688246843043,22.976,18.411,18.402,55.0]
[1688246843350,59.12,18.421,18.405,16.83834012]
[1688246843549,22.968,18.417,18.41,22.976]
[1688246850161,22.966,18.418,18.41,22.976]
[1688246855461,22.966,18.418,18.409,22.977]
[1688246867367,22.966,18.418,18.408,6.23169852]
[1688246867872,22.966,18.418,18.408,22.978]
[1688246880380,22.966,18.418,18.394,3.0]
[1688246880671,94.301,18.42,18.406,22.98]
[1688246880672,22.972,18.414,18.406,22.98]
[1688246884678,20.0,18.413,18.405,22.982]
[1688246884984,22.975,18.411,18.405,22.982]
[1688246885688,22.975,18.411,18.404,22.983]
[1688246890195,22.975,18.411,18.401,97.3133]
[1688246890397,22.975,18.411,18.402,5.71768738]
[1688246890715,22.975,18.411,18.403,22.984]
[1688246892793,42.973,18.413,18.404,5.08832457]
[1688246893101,42.973,18.413,18.404,28.07132457]
[1688246893299,42.973,18.413,18.404,22.983]
[1688246894612,42.973,18.413,18.403,22.985]
[1688246894915,42.973,18.413,18.404,2.93251259]
[1688246900203,42.973,18.413,18.403,7.09331083]
[1688246906316,42.973,18.413,18.402,7.81593773]
[1688246910727,42.973,18.413,18.402,30.80193773]
[1688246933745,42.973,18.413,18.402,7.81593773]
[1688246934044,55.0,18.412,18.402,7.81593773]
[1688246934354,22.977,18.409,18.402,30.80193773]
[1688246934652,22.977,18.409,18.402,22.986]
[1688246945259,22.977,18.409,18.397,4.5100395]
[1688246945471,22.977,18.409,18.401,22.986]
[1688246952779,22.976,18.41,18.401,22.986]
[1688246952961,22.976,18.41,18.402,4.5100395]
[1688246953167,22.976,18.41,18.404,22.983]
[1688246955383,22.976,18.41,18.403,22.985]
[1688246957266,22.976,18.41,18.402,22.986]
[1688246976776,22.976,18.41,18.401,22.987]
[1688246976983,22.976,18.41,18.402,4.59165046]
[1688246977383,22.976,18.41,18.401,22.987]
[1688246984888,22.976,18.41,18.402,4.59165046]
[1688246985089,22.976,18.41,18.403,22.984]
[1688246986401,22.976,18.41,18.404,55.0]
[1688246986707,22.976,18.41,18.404,22.983]
[1688246989302,22.976,18.41,18.402,22.986]
[1688247016308,22.976,18.41,18.399,22.989]
[1688247016513,22.976,18.41,18.4,4.96487537]
[1688247016706,22.976,18.41,18.397,13.42310974]
[1688247017826,22.976,18.41,18.4,22.989]
[1688247018029,22.976,18.41,18.401,13.42310974]
[1688247018329,22.976,18.41,18.401,36.41010974]
[1688247018515,22.976,18.41,18.401,22.987]
[1688247029436,22.976,18.41,18.399,22.989]
[1688247029642,55.0,18.409,18.4,5.3163114]
[1688247029842,22.981,18.407,18.399,22.989]
[1688247055747,55.0,18.406,18.391,89.6587]
[1688247055947,22.987,18.402,18.394,22.996]
[1688247056449,22.99,18.4,18.394,22.996]
[1688247057048,42.988,18.401,18.394,22.996]
[1688247057256,22.988,18.401,18.394,22.996]
[1688247058464,22.988,18.401,18.395,2.36758635]
[1688247060356,22.988,18.401,18.393,22.997]
[1688247060845,22.988,18.401,18.394,13.42310974]
[1688247067365,22.988,18.401,18.392,36.42110974]
[1688247069764,22.988,18.401,18.392,13.42310974]
[1688247074172,22.988,18.401,18.392,36.42110974]